bitfinex-derivatives/quotes_ETHF0:USTF0_20251013
["timestamp","ask_amount","ask_price","bid_price","bid_amount"]
[1760350232752,1.20019,4159.9,4159.8,1.28342961]
[1760350233350,0.137,4159.5,4159.4,1.71190761]
[1760350233556,0.469,4159.5,4159.4,1.71190761]
[1760350233751,1.33724,4159.5,4159.4,1.71190761]
[1760350233960,1.20025,4159.4,4159.3,4.49443198]
[1760350234149,1.20025,4159.4,4159.3,3.2078]
[1760350234644,0.86826,4159.3,4159.1,1.28663198]
[1760350234849,1.33729,4159.0,4158.9,1.28663198]
[1760350235644,0.90149,4159.0,4158.9,1.28663198]
[1760350235843,0.7645,4158.9,4158.8,3.2078]
[1760350236049,0.5477,4158.9,4158.8,3.2078]
[1760350236656,0.9802,4158.9,4158.8,3.2078]
[1760350237156,1.2003,4158.9,4158.8,4.49500501]
[1760350238461,1.20031,4158.8,4158.7,1.28720501]
[1760350238658,1.20032,4158.7,4158.6,1.28720501]
[1760350238958,1.20032,4158.7,4158.5,0.0025357]
[1760350239150,0.43253,4158.6,4158.5,0.0025357]
[1760350239357,0.98023,4158.6,4158.5,0.0025357]
[1760350239558,1.20033,4158.6,4158.5,0.0025357]
[1760350240257,4.30834301,4158.6,4158.5,0.0025357]
[1760350241354,1.20033,4158.6,4158.5,0.86104062]
[1760350241558,1.20033,4158.6,4158.5,0.0025357]
[1760350242555,0.7678,4158.6,4158.5,0.0025357]
[1760350242759,0.332,4158.6,4158.5,0.86104062]
[1760350242959,0.332,4158.6,4158.5,0.0025357]
[1760350243160,0.332,4158.6,4158.5,1.29001672]
[1760350243862,0.332,4158.6,4158.5,0.4350757]
[1760350244064,0.332,4158.6,4158.5,0.0025357]
[1760350244365,0.98023,4158.6,4158.5,1.28876553]
[1760350244855,1.20033,4158.6,4158.5,1.28876553]
[1760350245260,0.7678,4158.6,4158.5,1.28876553]
[1760350245765,0.7678,4158.6,4158.5,0.86004817]
[1760350246266,0.332,4158.6,4158.5,1.29258817]
[1760350246464,0.5455,4158.6,4158.5,0.0025357]
[1760350246763,0.5455,4158.6,4158.5,0.85991114]
[1760350246764,1.19303,4158.6,4158.5,0.85991114]
[1760350247171,0.7605,4158.6,4158.5,0.85991114]
[1760350247353,0.332,4158.6,4158.5,1.29245114]
[1760350247557,0.332,4158.6,4158.5,0.4350757]
[1760350248772,0.7605,4158.6,4158.5,0.0025357]
[1760350249167,0.7605,4158.6,4158.5,0.85979444]
[1760350249368,1.19303,4158.6,4158.5,0.85979444]
[1760350249864,0.7605,4158.6,4158.5,0.85979444]
[1760350250265,0.7605,4158.6,4158.5,1.29233444]
[1760350251170,1.19303,4158.6,4158.5,0.85979444]
[1760350251380,4.27486664,4158.6,4158.5,0.0025357]
[1760350252269,4.27486664,4158.6,4157.5,0.85725874]
[1760350252270,0.87812,4157.7,4157.5,0.85725874]
[1760350252472,0.4455,4157.3,4157.2,0.85725874]
[1760350252778,0.7832,4157.3,4157.2,0.85725874]
[1760350253277,0.786058,4157.3,4157.2,0.00223468]
[1760350259877,0.786058,4157.3,4157.2,0.85949342]
[1760350260083,1.218728,4157.3,4157.2,0.00223468]
[1760350260873,0.3377,4156.7,4156.6,0.85725874]
[1760350261069,0.3377,4156.7,4156.1,0.85725874]
[1760350261070,1.21598,4156.2,4156.1,0.85725874]
[1760350261275,1.3469,4156.0,4155.9,0.85725874]
[1760350261577,0.5764,4155.5,4155.4,0.85725874]
[1760350261882,0.9141,4155.5,4155.4,0.85925501]
[1760350262284,0.6985,4155.5,4155.4,0.85925501]
[1760350262580,0.4686,4155.5,4155.4,0.00199627]
[1760350262784,0.4686,4155.5,4155.4,0.85938642]
[1760350262982,0.4686,4155.5,4155.4,0.00199627]
[1760350263373,0.9141,4155.5,4155.4,0.00199627]
[1760350265175,0.4686,4155.5,4155.4,0.00199627]
[1760350265575,0.9141,4155.5,4155.4,0.00199627]
[1760350266176,0.6985,4155.5,4155.4,0.00199627]
[1760350266375,0.4686,4155.5,4155.4,0.00199627]
[1760350267173,0.9141,4155.5,4155.4,0.00199627]
[1760350268687,1.34695,4155.5,4155.4,0.00199627]
[1760350268885,0.9141,4155.5,4155.4,0.00199627]
[1760350270286,1.34695,4155.5,4155.4,0.00199627]
[1760350271089,0.9141,4155.5,4155.4,0.00199627]
[1760350271384,0.9141,4155.5,4155.4,0.43485627]
[1760350271590,0.4686,4155.5,4155.4,0.43485627]
[1760350273784,0.4686,4156.0,4155.9,0.43281]
[1760350273977,0.7832,4155.9,4155.8,3.2078]
[1760350274177,0.1309,4156.0,4155.4,0.00199627]
[1760350274178,0.9141,4155.5,4155.4,0.00199627]
[1760350274385,0.9141,4155.5,4155.4,0.43485627]
[1760350274786,0.6985,4155.5,4155.4,0.43485627]
[1760350275088,0.4686,4155.5,4155.4,0.43485627]
[1760350276288,0.6985,4155.5,4155.4,0.43485627]
[1760350276588,0.9141,4155.5,4155.4,0.43485627]
[1760350277082,0.6985,4155.5,4155.4,0.43485627]
[1760350277383,0.6985,4155.5,4155.4,1.29059085]
[1760350277384,0.4686,4155.5,4155.4,1.29059085]
[1760350278286,0.4686,4155.5,4155.4,0.43485627]
[1760350278481,0.6985,4155.5,4155.4,0.43485627]
[1760350278688,0.9141,4155.5,4155.4,0.43485627]
[1760350279387,0.9141,4155.5,4155.4,0.00199627]
[1760350279687,0.9141,4155.5,4155.4,0.43485627]
[1760350280083,0.9141,4155.5,4155.4,0.00199627]
[1760350280290,0.43287,4155.3,4155.2,0.85746871]
[1760350280483,0.4463,4154.9,4154.7,0.85746871]
[1760350280678,1.22493,4154.8,4154.7,0.85746871]
[1760350281388,0.3457,4154.3,4154.2,0.43299]
[1760350281591,0.79447949,4154.3,4154.2,0.43581215]
[1760350281988,0.79447949,4154.3,4154.2,0.00282215]
[1760350286487,1.22745949,4154.3,4154.2,0.00282215]
[1760350287889,7.57070115,4154.3,4154.2,0.00282215]
[1760350291993,7.12440115,4154.3,4154.2,0.00282215]
[1760350292201,0.33905576,4154.3,4154.2,1.29557781]
[1760350292392,0.00247949,4154.3,4154.2,0.43581215]
[1760350293193,0.00247949,4154.3,4154.2,2.14771976]
[1760350294397,0.4732,4154.5,4154.4,0.43297]
[1760350294900,0.4732,4154.5,4154.2,1.71472976]
[1760350294901,0.792,4154.3,4154.2,0.00282215]
[1760350295295,1.22767848,4154.3,4154.2,1.29272834]
[1760350295595,0.8793,4154.1,4154.0,0.8601405]
[1760350295796,1.22503,4153.8,4153.7,0.32801619]
[1760350296102,1.22508,4153.3,4153.2,0.2407753]
[1760350296494,4.37575954,4153.3,4153.2,0.2407753]
[1760350296694,4.37575954,4153.3,4153.2,0.24274358]
[1760350298403,0.5709,4153.3,4153.2,0.55974358]
[1760350298704,3.9998,4153.3,4153.2,0.24274358]
[1760350299098,3.9998,4153.3,4153.2,0.23474358]
[1760350299597,4.43288,4153.3,4153.2,0.23474358]
[1760350300003,3.9998,4153.3,4153.2,0.39324358]
[1760350300398,3.9998,4153.3,4153.2,0.23474358]
[1760350301501,4.5911,4153.3,4153.2,0.23474358]
[1760350301803,6.8251,4153.3,4153.2,0.23474358]
[1760350302204,3.171,4153.3,4153.2,0.55174358]
[1760350302599,3.6173,4153.3,4153.2,0.39324358]
[1760350302800,3.6173,4153.3,4153.2,0.23474358]
[1760350303305,6.8251,4153.3,4153.2,0.23474358]
[1760350305109,9.96946127,4153.3,4153.2,0.23474358]
[1760350305408,0.1275,4153.0,4152.8,0.02408014]
[1760350305602,0.792,4152.9,4152.8,0.02408014]
[1760350305799,4.36894176,4152.9,4152.8,0.02408014]
[1760350306501,4.36894176,4152.9,4152.8,0.02625188]
[1760350307210,0.5709,4152.9,4152.8,0.34325188]
[1760350307607,0.792,4152.9,4152.8,0.18475188]
[1760350308311,0.792,4152.9,4152.8,0.02625188]
[1760350308713,1.22512,4152.9,4152.8,0.18475188]
[1760350309009,0.5709,4152.9,4152.8,0.34325188]
[1760350309207,1.00402,4152.9,4152.8,0.34325188]
[1760350309407,6.0331,4153.3,4153.2,0.4171]
[1760350309707,2.8253,4153.3,4153.2,0.4171]
[1760350311713,1.92508945,4153.3,4153.2,2.12900761]
[1760350312005,1.2988,4153.3,4153.2,0.4171]
[1760350313408,1.62,4153.3,4153.2,0.3178]
[1760350314110,2.0625,4153.3,4153.2,0.1589]
[1760350314510,1.62,4153.3,4153.2,0.3184]
[1760350314805,1.62,4153.3,4153.0,3.2078]
[1760350314806,0.5449,4153.1,4153.0,3.3673]
[1760350315313,0.5449,4153.1,4153.0,3.5268]
[1760350315815,0.7637,4153.1,4153.0,3.5268]
[1760350316415,0.7637,4153.1,4153.0,3.2078]
[1760350316910,0.7637,4153.1,4153.0,3.3673]
[1760350317613,0.7637,4153.1,4153.0,3.2078]
[1760350317809,0.7637,4152.9,4152.8,0.02625188]
[1760350319212,1.19682,4152.9,4152.8,0.02625188]
[1760350320914,1.19682,4152.9,4151.9,1.81160761]
[1760350320915,0.3212,4152.1,4152.0,4.49910077]
[1760350321109,1.19691,4152.1,4152.0,3.2078]
[1760350322114,1.19691,4152.1,4152.0,3.21009049]
[1760350322115,0.7637,4152.1,4152.0,3.21009049]
[1760350322311,1.19691,4152.1,4152.0,3.21009049]
[1760350322813,0.57127,4152.5,4152.3,0.319]
[1760350323011,0.5449,4152.4,4152.3,0.319]
[1760350323413,0.7637,4152.4,4152.3,0.319]
[1760350323814,0.7637,4152.4,4152.3,0.75219]
[1760350324812,0.3212,4152.4,4152.3,0.85189]
[1760350325013,0.4593,4152.5,4152.3,0.85189]
[1760350325214,0.3212,4152.4,4152.3,0.85189]
[1760350325518,0.3212,4152.4,4152.3,0.75219]
[1760350325919,0.3212,4152.4,4152.3,2.04349077]
[1760350326318,0.3212,4152.7,4152.4,0.4187]
[1760350326620,0.3212,4152.7,4152.0,4.29313049]
[1760350326621,0.1381,4153.0,4152.6,2.14577287]
[1760350326815,0.79491,4153.0,4152.9,0.1595]
[1760350327013,0.4425,4152.7,4152.6,1.72707287]
[1760350327217,0.2237,4152.7,4152.6,2.04607287]
[1760350327411,0.4593,4153.0,4152.9,0.319]
[1760350327619,0.3212,4153.0,4152.9,0.4187]
[1760350327822,0.3212,4153.0,4152.9,0.75212]
[1760350328022,0.3212,4153.0,4152.9,0.85182]
[1760350328215,0.3212,4153.0,4152.9,2.14542619]
[1760350329021,0.3212,4153.0,4152.9,1.61260619]
[1760350329219,0.683,4153.0,4152.9,1.45310619]
[1760350329720,1.11611,4153.0,4152.9,1.45310619]
[1760350329916,0.683,4153.0,4152.9,1.45310619]
[1760350330316,1.11611,4153.0,4152.9,1.45310619]
[1760350330518,1.33491,4153.0,4152.9,1.45310619]
[1760350330723,0.683,4153.0,4152.9,1.61260619]
[1760350332619,0.7214,4153.3,4153.2,0.1595]
[1760350332826,0.7214,4153.3,4153.2,0.4187]
[1760350333123,1.0426,4153.3,4153.2,0.4187]
[1760350333316,1.0426,4153.3,4153.2,0.319]
[1760350333516,0.7214,4153.3,4153.2,0.4187]
[1760350333722,1.0426,4153.3,4153.2,0.4187]
[1760350334425,1.6194,4153.3,4153.2,0.4187]
[1760350334728,1.2982,4153.3,4153.2,2.14539619]
[1760350334929,1.2982,4153.3,4153.2,0.85179]
[1760350335122,0.6258,4153.7,4153.2,0.85179]
[1760350335123,0.947,4153.7,4153.6,0.43305]
[1760350335327,0.3212,4153.7,4153.6,0.43305]
[1760350336029,0.3212,4153.3,4153.1,4.92857907]
[1760350336224,0.7637,4153.2,4153.1,3.2078]
[1760350336430,1.19679,4153.2,4153.1,3.2078]
[1760350337330,0.7637,4153.2,4153.1,3.2078]
[1760350337530,1.19679,4153.2,4153.1,3.2078]
[1760350338935,0.3212,4153.2,4153.1,3.2078]
[1760350339132,0.3212,4153.2,4153.1,3.6409]
[1760350340631,0.5449,4153.2,4153.1,3.6409]
[1760350340831,1.19919,4153.2,4153.1,3.2078]
[1760350341032,0.7661,4153.2,4153.1,3.2078]
[1760350341829,1.19919,4153.2,4153.1,3.2078]
[1760350342740,1.19919,4153.2,4152.8,2.15390907]
[1760350342741,0.87842,4152.9,4152.8,1.29179871]
[1760350342935,1.22003,4152.8,4152.7,1.29179871]
[1760350343740,0.7869,4152.8,4152.7,1.29179871]
[1760350343939,0.3416,4152.7,4152.6,0.43315]
[1760350344439,0.3416,4152.7,4152.6,2.15609869]
[1760350345133,0.2241,4152.7,4152.6,2.15609869]
[1760350345436,0.2212,4152.6,4152.5,4.93074869]
[1760350345627,0.87845,4152.6,4152.5,3.2078]
[1760350346739,0.87845,4152.6,4152.5,4.50050726]
[1760350347140,1.22005,4152.6,4152.5,3.2078]
[1760350348737,0.7869,4152.6,4152.5,4.50050726]
[1760350349435,1.22005,4152.6,4152.5,4.50050726]
[1760350350544,0.7869,4152.6,4152.5,4.50050726]
[1760350350939,1.22005,4152.6,4152.5,4.50050726]
[1760350351638,1.22005,4152.6,4152.5,3.2078]
[1760350352143,1e-05,4153.0,4152.5,4.93367726]
[1760350352349,0.4728,4154.0,4153.9,0.43302]
[1760350352640,0.1355,4154.0,4153.9,5.36314261]
[1760350352837,0.1355,4154.0,4153.9,4.93013261]
[1760350353034,0.1355,4154.0,4153.9,1.72233261]
[1760350353248,0.1355,4154.0,4153.9,1.29201766]
[1760350353642,0.1355,4154.0,4153.8,1.29201766]
[1760350354046,0.1355,4154.0,4153.8,0.43303]
[1760350354340,0.1355,4154.0,4153.9,3.2078]
[1760350354539,0.4702,4154.0,4153.9,3.2078]
[1760350355139,0.00269848,4154.3,4153.9,3.2078]
[1760350355338,3.2078,4155.4,4154.9,0.43292]
[1760350355539,3.2078,4155.4,4154.9,1.72455378]
[1760350356239,3.2078,4155.4,4154.9,0.43292]
[1760350356435,0.13751286,4155.0,4154.9,0.43292]
[1760350357241,0.47221286,4155.0,4154.9,0.43292]
[1760350358245,0.47221286,4155.0,4154.9,1.29231427]
[1760350359738,0.47221286,4155.0,4154.9,0.43292]
[1760350360844,0.90191286,4155.0,4154.9,0.43292]
[1760350363035,0.90191286,4155.0,4154.6,0.85939427]
[1760350363346,0.7644,4154.7,4154.6,0.43295]
[1760350364639,0.7644,4154.4,4154.2,0.85939427]
[1760350364844,0.7644,4154.4,4154.3,0.43298]
[1760350365941,0.3347,4154.3,4154.0,3.2078]
[1760350366144,0.4297,4154.1,4154.0,3.64081]
[1760350366443,0.7644,4154.1,4154.0,3.64081]
[1760350368449,0.7644,4154.1,4154.0,0.43301]
[1760350369651,0.1355,4154.5,4154.4,0.43297]
[1760350369850,0.5716,4154.5,4154.4,0.43297]
[1760350370349,0.9149,4154.5,4154.4,0.43297]
[1760350373051,0.7063,4154.5,4154.4,0.43297]
[1760350373251,0.4788,4154.5,4154.4,0.43297]
[1760350373750,0.1355,4154.5,4154.4,0.43297]
[1760350374048,0.4788,4154.5,4154.4,0.43297]
[1760350374249,0.00201286,4155.0,4154.9,0.43292]
[1760350374453,0.00201286,4155.0,4154.9,4.49924641]
[1760350375152,0.00201286,4155.0,4154.9,3.64072]
[1760350375651,3.4353,4155.9,4155.3,1.08217]
[1760350375845,3.4353,4155.9,4155.8,0.43282]
[1760350376045,3.6439,4155.9,4155.8,0.43282]
[1760350376244,3.9872,4155.9,4155.8,0.43282]
[1760350376646,3.64643912,4155.9,4155.8,0.00215869]
[1760350377351,3.98973912,4155.9,4155.8,0.00215869]
[1760350377555,3.98973912,4155.9,4155.8,0.43497869]
[1760350377745,3.78113912,4155.9,4155.8,0.43497869]
[1760350377946,0.34583912,4155.9,4155.8,0.43497869]
[1760350378756,0.00253912,4155.9,4155.8,0.43497869]
[1760350379341,0.9069,4156.2,4155.8,0.43497869]
[1760350379648,0.9069,4156.2,4156.1,0.85833761]
[1760350379850,0.9069,4156.2,4156.1,0.43279]
[1760350380050,0.5556,4156.2,4156.1,0.43279]
[1760350380354,0.55829769,4156.2,4156.1,0.43279]
[1760350381053,0.00269769,4156.2,4156.1,0.43279]
[1760350382060,0.57349769,4156.2,4156.1,0.43279]
[1760350382357,0.00269769,4156.2,4156.1,0.43279]
[1760350383150,3.4353,4157.4,4156.4,1.08188]
[1760350383356,0.3433,4157.3,4157.2,0.43268]
[1760350383555,1.1263,4157.3,4157.2,0.43268]
[1760350384066,1.3349,4157.3,4157.2,0.43268]
[1760350384253,1.3378856,4157.3,4157.2,0.43268]
[1760350384554,1.3378856,4157.3,4157.1,0.43269]
[1760350384555,0.5708,4157.2,4157.1,0.43269]
[1760350384750,0.3433,4157.2,4157.1,0.43269]
[1760350384952,0.9017856,4157.3,4157.2,0.43268]
[1760350385255,0.5584856,4157.3,4157.2,0.43268]
[1760350386263,0.3148,4157.6,4157.5,0.43264]
[1760350386451,0.3148,4157.6,4157.5,1.2870873]
[1760350387148,0.1368,4158.0,4157.3,1.28167095]
[1760350387355,0.4801,4158.5,4158.4,0.43255]
[1760350388157,0.71051129,4158.5,4158.4,0.43255]
[1760350388458,0.2275,4157.9,4157.7,3.64042]
[1760350388661,0.5708,4157.8,4157.7,3.64042]
[1760350388863,0.3433,4157.8,4157.7,3.64042]
[1760350389661,0.7794,4157.8,4157.7,3.2078]
[1760350390463,0.43261,4157.9,4157.2,0.43267]
[1760350390464,0.1368,4157.5,4157.2,3.2078]
[1760350390781,0.3433,4157.4,4157.2,3.2078]
[1760350391258,0.3433,4157.3,4157.2,3.2078]
[1760350396765,0.5708,4157.3,4157.2,3.2078]
[1760350397162,0.5708,4157.3,4157.2,3.64048]
[1760350397668,0.3433,4157.3,4157.2,3.64048]
[1760350397866,0.91285,4156.5,4156.0,1.72240406]
[1760350398071,0.77611,4155.9,4154.7,0.43293]
[1760350398274,0.77619,4155.2,4154.4,3.64076]
[1760350398464,0.1368,4155.5,4154.4,3.2078]
[1760350398465,0.1368,4155.0,4154.4,3.2078]
[1760350398664,0.3433,4154.8,4154.4,3.2078]
[1760350398959,0.1368,4154.5,4154.4,3.2078]
[1760350399166,0.4801,4154.5,4154.4,3.2078]
[1760350399366,0.4821742,4154.5,4154.4,3.21082602]
[1760350399962,0.4821742,4154.5,4154.4,0.00302602]
[1760350404871,0.9151342,4154.5,4154.4,0.00302602]
[1760350405176,0.4350342,4154.5,4154.4,0.00302602]
[1760350405474,0.0020742,4154.5,4154.4,0.00302602]
[1760350405662,0.0020742,4154.5,4154.4,3.21082602]
[1760350406067,0.4768742,4154.5,4154.4,0.00302602]
[1760350408374,0.0020742,4154.5,4154.4,0.00302602]
[1760350408978,0.4768742,4154.5,4154.4,0.00302602]
[1760350409674,0.9098342,4154.5,4154.4,0.00302602]
[1760350413178,1.3634342,4154.5,4154.4,0.00302602]
[1760350413482,0.2264,4153.3,4153.1,3.6409]
[1760350413682,0.343,4153.4,4153.2,0.43309]
[1760350413878,0.1318,4153.5,4153.1,3.2078]
[1760350414173,0.1318,4153.5,4153.1,3.6409]
[1760350414375,0.343,4153.4,4153.1,3.64331204]
[1760350414683,0.343,4153.4,4153.2,0.43309]
[1760350415067,0.3582,4153.5,4153.1,3.64331204]
[1760350415270,0.343,4153.4,4153.1,3.64331204]
[1760350415680,0.343,4153.4,4153.2,0.43309]
[1760350416475,0.2264,4153.4,4153.1,3.64331204]
[1760350416679,0.5694,4153.4,4153.1,3.64331204]
[1760350416880,0.343,4153.4,4153.1,3.64331204]
[1760350417072,0.56486,4153.5,4153.1,3.64331204]
[1760350417380,0.343,4153.4,4153.1,3.64331204]
[1760350417679,0.343,4153.3,4153.1,3.64331204]
[1760350417882,0.343,4153.4,4153.1,3.64331204]
[1760350418075,0.343,4153.3,4153.1,3.64331204]
[1760350418286,0.343,4153.4,4153.1,3.64331204]
[1760350418676,0.343,4153.3,4153.2,0.43309]
[1760350419172,0.343,4153.3,4153.1,3.21021204]
[1760350419373,0.5694,4153.2,4153.1,3.21021204]
[1760350419773,1.00249,4153.2,4153.1,3.21021204]
[1760350420583,1.22969,4153.2,4153.1,0.00241204]
[1760350421778,4.42187042,4153.2,4153.1,0.00241204]
[1760350422675,0.5694,4151.7,4151.6,3.2078]
[1760350423283,0.343,4151.7,4151.6,3.2078]
[1760350423579,0.5694,4151.7,4151.6,3.209884]
[1760350424579,0.343,4151.7,4151.6,3.209884]
[1760350426075,0.1318,4152.0,4151.6,3.209884]
[1760350426379,0.343,4151.9,4151.6,3.209884]
[1760350426878,0.1318,4152.0,4151.6,3.209884]
[1760350427178,0.5435,4151.9,4151.6,3.209884]
[1760350427375,0.2201,4151.8,4151.6,3.209884]
[1760350427579,0.1318,4152.0,4151.6,3.209884]
[1760350427580,0.3234,4151.7,4151.6,3.209884]
[1760350429277,0.3234,4151.9,4151.6,3.643144]
[1760350429680,0.1318,4152.0,4151.6,3.209884]
[1760350429978,0.3146,4151.9,4151.6,3.209884]
[1760350431077,0.3417,4152.0,4151.6,3.209884]
[1760350431278,0.1318,4152.0,4151.6,3.209884]
[1760350431480,0.5245,4152.3,4151.7,0.43325]
[1760350431879,0.3146,4152.2,4151.7,0.43325]
[1760350432081,0.3146,4152.1,4151.7,0.43325]
[1760350432277,0.4501,4152.0,4151.7,0.43325]
[1760350432478,0.1355,4152.0,4151.7,0.43325]
[1760350432781,0.3146,4151.9,4151.6,3.643134]
[1760350432981,0.3146,4151.8,4151.6,3.209884]
[1760350433282,0.5245,4151.7,4151.6,3.209884]
[1760350433879,0.7452,4151.7,4151.6,3.209884]
[1760350435286,0.5245,4151.7,4151.6,3.209884]
[1760350435787,0.7452,4151.7,4151.6,3.209884]
[1760350437883,0.5245,4151.7,4151.6,3.209884]
[1760350438086,0.3146,4151.7,4151.6,3.643144]
[1760350438490,0.3146,4151.7,4151.6,3.209884]
[1760350438991,0.3146,4151.7,4151.6,3.643144]
[1760350439691,0.1355,4152.0,4151.6,3.643144]
[1760350439988,0.3146,4151.9,4151.6,3.209884]
[1760350440191,0.5245,4152.4,4151.6,3.643144]
[1760350440391,0.5245,4152.4,4151.7,0.43325]
[1760350440785,0.5245,4152.3,4151.7,0.43325]
[1760350441094,0.5245,4152.2,4151.6,3.643144]
[1760350441285,0.2099,4151.7,4151.6,3.209884]
[1760350441591,0.5245,4151.7,4151.6,3.209884]
[1760350442792,1.17845,4151.7,4151.6,0.002084]
[1760350444181,0.2207,4150.7,4150.6,3.2078]
[1760350444382,0.66,4150.0,4149.9,3.64123]
[1760350445193,0.66285251,4150.0,4149.9,3.64292659]
[1760350445887,0.45295251,4150.0,4149.9,3.64292659]
[1760350446489,0.66285251,4150.0,4149.9,3.64292659]
[1760350447190,0.45295251,4150.0,4149.9,3.64292659]
[1760350447699,0.00285251,4150.0,4149.9,3.64292659]
[1760350449906,0.3146,4150.8,4150.7,0.43335]
[1760350450092,0.5245,4150.8,4150.7,0.43335]
[1760350450288,0.7452,4150.8,4150.7,0.43335]
[1760350450689,0.5245,4150.2,4150.1,3.64122]
[1760350450996,0.3146,4150.2,4150.1,3.64122]
[1760350451493,0.5245,4150.2,4150.1,3.64122]
[1760350451687,0.7452,4150.2,4150.1,3.64122]
[1760350452694,0.5245,4150.2,4150.1,3.64122]
[1760350454194,0.7452,4150.2,4150.1,3.64122]
[1760350454494,0.1355,4150.5,4150.4,0.43338]
[1760350454793,0.3146,4150.4,4150.3,0.43339]
[1760350454988,0.31678211,4150.8,4150.7,0.43335]
[1760350455198,0.52668211,4150.8,4150.7,3.64115]
[1760350455697,0.3146,4151.3,4151.2,0.4333]
[1760350455899,0.4501,4151.5,4151.4,0.43328]
[1760350456294,0.66,4151.5,4151.4,0.43328]
[1760350456793,0.45254493,4151.5,4151.4,0.43328]
[1760350456993,0.21234493,4151.5,4151.4,4.93096277]
[1760350457186,0.5245,4151.2,4151.1,1.28993285]
[1760350457496,0.13794493,4151.5,4150.8,4.29114]
[1760350457696,0.13794493,4151.5,4150.7,1.70664763]
[1760350457697,0.45254493,4151.5,4151.4,3.2078]
[1760350457896,0.88314493,4151.5,4151.4,3.2078]
[1760350458295,0.88314493,4151.5,4151.0,1.28998707]
[1760350458296,0.2099,4151.1,4151.0,1.28998707]
[1760350458496,0.2099,4151.1,4150.8,3.2078]
[1760350458497,0.5245,4150.9,4150.8,4.49778707]
[1760350458689,0.7452,4150.9,4150.8,3.2078]
[1760350459701,3.9195204,4150.9,4150.8,3.2078]
[1760350462399,0.7675,4150.2,4150.1,3.2078]
[1760350462697,0.3238,4150.2,4150.1,4.49778707]
[1760350463295,0.5462,4150.2,4150.1,4.49778707]
[1760350463600,0.5462,4150.2,4150.1,3.2078]
[1760350464201,0.3238,4150.2,4150.1,3.2078]
[1760350464504,0.3238,4150.4,4150.2,0.43341]
[1760350464698,0.3238,4150.4,4150.2,1.72452785]
[1760350464899,0.3238,4150.4,4150.3,0.43339]
[1760350465200,0.3238,4150.9,4150.8,0.43334]
[1760350465400,0.5462,4150.9,4150.8,3.2078]
[1760350465698,0.7675,4150.9,4150.8,3.2078]
[1760350467602,0.7675,4150.9,4150.8,3.64114]
[1760350467802,0.7675,4150.9,4150.8,3.2078]
[1760350468402,0.5462,4150.9,4150.8,3.64114]
[1760350468706,0.3238,4150.9,4150.8,4.93207527]
[1760350469197,0.1355,4151.0,4150.9,0.43333]
[1760350469398,0.46174493,4151.5,4151.3,0.43328]
[1760350469600,0.46174493,4151.5,4151.4,4.49926193]
[1760350469601,0.90544493,4151.5,4151.4,4.49926193]
[1760350469797,0.4437,4151.3,4150.9,0.43333]
[1760350470001,0.13794493,4151.5,4150.9,0.43333]
[1760350470002,0.4568,4151.0,4150.9,0.43333]
[1760350470497,0.3238,4151.4,4151.3,0.43329]
[1760350470702,0.3238,4151.4,4151.3,3.64109]
[1760350472402,0.2224,4151.0,4150.9,1.70664763]
[1760350472701,0.3238,4150.9,4150.8,3.64114]
[1760350473092,0.3238,4150.9,4150.8,3.2078]
[1760350473292,0.7675,4150.9,4150.8,3.2078]
[1760350473704,0.7675,4150.9,4150.8,4.50075869]
[1760350474399,0.7675,4150.9,4150.8,3.2078]
[1760350474598,0.3238,4151.2,4150.8,4.50075869]
[1760350474905,0.2224,4151.1,4151.0,1.29289405]
[1760350475107,0.5462,4151.1,4151.0,1.29289405]
[1760350475498,0.7675,4151.1,4151.0,1.29289405]
[1760350475908,0.4568,4151.0,4150.8,3.64114]
[1760350476107,0.3238,4150.9,4150.8,3.64114]
[1760350476406,0.3238,4150.9,4150.8,3.2078]
[1760350477406,0.3238,4151.3,4150.8,4.91444763]
[1760350477806,0.3238,4151.3,4151.2,0.4333]
[1760350478004,0.00244493,4151.5,4151.4,0.43328]
[1760350478302,0.3238,4152.1,4151.9,0.43323]
[1760350479102,0.3238,4152.1,4151.7,0.43324]
[1760350479103,0.4568,4152.0,4151.7,0.43324]
[1760350479408,0.4568,4152.0,4151.8,0.43324]
[1760350479810,0.00215817,4152.1,4151.9,3.64103]
[1760350480010,0.00215817,4152.1,4151.9,3.2078]
[1760350480311,0.32595817,4152.1,4151.9,3.2078]
[1760350480503,0.32595817,4152.1,4152.0,1.29220454]
[1760350480704,0.4568,4152.0,4151.9,4.50000454]
[1760350485413,1.00273,4152.0,4151.8,1.29220454]
[1760350485615,0.7497,4151.9,4151.8,1.29220454]
[1760350485813,0.3193,4151.8,4151.4,5.36513552]
[1760350486010,0.1376,4151.5,4151.4,3.2078]
[1760350486209,0.4569,4151.5,4151.4,3.2078]
[1760350486411,0.1376,4151.5,4151.4,3.64108]
[1760350486614,0.3493,4152.0,4151.4,5.36513552]
[1760350486815,0.3193,4151.9,4151.8,1.29186866]
[1760350487017,0.5356,4151.9,4151.8,1.29186866]
[1760350487616,0.5356,4151.8,4151.7,1.29186866]
[1760350488021,0.5356,4151.8,4151.4,3.2078]
[1760350488315,0.5356,4151.8,4151.7,1.2918944]
[1760350489317,1.18294,4151.8,4151.7,1.2918944]
[1760350489609,1.18806,4151.6,4151.5,1.2918944]
[1760350489803,0.7548,4151.6,4151.5,1.2918944]
[1760350490217,1.18806,4151.6,4151.5,1.2918944]
[1760350491413,0.89987,4151.5,4151.4,4.4996944]
[1760350491715,1.32497,4151.5,4151.4,4.4996944]
[1760350492017,1.32497,4151.5,4151.4,3.2078]
[1760350492420,1.32497,4151.5,4151.4,2.88166769]
[1760350492718,1.18814,4150.8,4150.7,1.2918944]
[1760350493420,0.76304,4150.8,4150.7,1.2918944]
[1760350493920,1.18814,4150.8,4150.7,1.2918944]
[1760350494114,0.3297,4150.8,4150.7,1.2918944]
[1760350494315,0.3297,4150.8,4150.4,0.43338]
[1760350494618,0.3297,4150.4,4150.3,4.93185552]